fUSD/lending_fUSD_20250513
["ID","MTS","AMOUNT","RATE_DAILY","PERIOD"]
[360890037,1747113031791,-500.0,0.00011879,2]
[360890038,1747113031803,-471.42161165,0.00011879,2]
[360890039,1747113031813,-150.0,0.00011899,2]
[360890040,1747113031822,-170.07895785,0.000119,2]
[360890041,1747113031832,-171.79953325,0.000119,2]
[360890042,1747113031841,-4003.1132,0.000119,2]
[360890043,1747113031850,-270.5876,0.000119,2]
[360890044,1747113031859,-4815.8172,0.000119,2]
[360890045,1747113031869,-1000.0,0.000119,2]
[360890046,1747113031878,-3799.2634,0.000119,2]
[360890047,1747113031887,-500.0,0.000119,2]
[360890048,1747113031896,-943.2077,0.000119,2]
[360890049,1747113031905,-165.43180098,0.000119,2]
[360890050,1747113031916,-225.283,0.000119,2]
[360890051,1747113031926,-1879.0107,0.000119,2]
[360890052,1747113031935,-5745.0743,0.000119,2]
[360890053,1747113031944,-500.0,0.00011973,2]
[360890054,1747113031953,-500.0,0.00011973,2]
[360890055,1747113031963,-625.01118101,0.00011973,2]
[360890056,1747113031972,-328.46784619,0.00011973,2]
[360890057,1747113031981,-500.0,0.00011973,2]
[360890058,1747113031990,-500.0,0.00011973,2]
[360890059,1747113031999,-168.89,0.0001199,2]
[360890060,1747113032009,-207.4,0.00011993,2]
[360890061,1747113032018,-185.40405009,0.00011993,2]
[360890062,1747113032028,-214.37073772,0.00011993,2]
[360890063,1747113032037,-668.65185757,0.00011993,2]
[360890064,1747113032046,-1219.006153,0.00011995,2]
[360890065,1747113032055,-839.916,0.00011999,2]
[360890066,1747113032064,-190.48691295,0.00012,2]
[360890067,1747113032074,-6270.30926238,0.00012,2]
[360890072,1747113032153,-1991.56301624,0.00012,2]
[360890074,1747113032164,-1239.0277906,0.00012,2]
[360890078,1747113032207,-1025.1388838,0.00012,2]
[360890079,1747113032218,-2306.43100892,0.00012,2]
[360890080,1747113032250,-791.14462209,0.00012,2]
[360890081,1747113032261,-1695.22280934,0.00012,2]
[360890082,1747113032272,-644.94354743,0.00012,2]
[360890083,1747113032283,-1541.18937342,0.00012,2]
[360890092,1747113037676,-3795.07863044,0.000119,2]
[360890093,1747113037688,-322.27210038,0.000119,2]
[360890094,1747113037732,-553.13589406,0.000119,2]
[360890095,1747113037843,-332.44760477,0.000119,2]
[360890096,1747113037853,-4742.50119681,0.00012,2]
[360890133,1747113039915,-161.28003003,0.000119,2]
[360890134,1747113039926,-4749.98201155,0.00012,2]
[360890138,1747113042785,-1933.0131584,0.00012,2]
[360890139,1747113043082,-1027.3,0.00012,2]
[360890228,1747113045862,-938.92889872,0.00012,2]
[360890229,1747113045874,-592.272,0.00012,2]
[360890230,1747113045977,-292.50521114,0.00012,2]
[360890231,1747113046033,-430.63280416,0.00012,2]
[360890551,1747113132406,510.102,0.00028,120]
[360890552,1747113153819,307.95,9.7e-05,2]
[360890556,1747113173682,224.55507827,0.00028,120]
[360890557,1747113316821,1852.42,0.00011215,2]
[360890558,1747113317031,653.84254258,0.00027397,120]
[360890559,1747113461385,166.87,0.00011565,2]
[360890560,1747113489039,23900.0,0.00011205,2]
[360890562,1747113517616,161.6,0.00011202,2]
[360890563,1747113554237,516.561272,0.00028,120]
[360890564,1747113628970,1083.0,0.000118,2]
[360890565,1747113637782,166.0,0.00028,120]
[360890566,1747113688982,1623.0,0.000118,2]
[360890567,1747113689029,1185.0,0.000118,2]
[360890568,1747113738297,280991.03,0.00011079,2]
[360890569,1747113930708,334.0,0.00022,30]
[360890570,1747113942606,-172.32280711,0.00011866,2]
[360890571,1747113947464,155.15419171,0.00011073,2]
[360890572,1747113947489,139.74580829,0.00011073,2]
[360890573,1747113965965,1000.0,0.00011073,2]
[360890606,1747114063858,198.39,0.00011035,2]
[360890607,1747114104565,-207.4,0.00011863,2]
[360890608,1747114104591,-300.0,0.00011864,2]
[360890609,1747114104627,-500.0,0.00011865,2]
[360890610,1747114104663,-500.0,0.00011865,2]
[360890611,1747114104698,-500.0,0.00011865,2]
[360890612,1747114104734,-500.0,0.00011865,2]
[360890613,1747114104769,-500.0,0.00011865,2]
[360890614,1747114104804,-500.0,0.00011865,2]
[360890615,1747114104838,-500.0,0.00011865,2]
[360890616,1747114104872,-500.0,0.00011865,2]
[360890617,1747114104909,-184.20866371,0.00011865,2]
[360890618,1747114104949,-500.0,0.00011865,2]
[360890619,1747114104987,-500.0,0.00011865,2]
[360890620,1747114105019,-500.0,0.00011865,2]
[360890621,1747114105054,-500.0,0.00011865,2]
[360890622,1747114105088,-500.0,0.00011865,2]
[360890623,1747114105123,-500.0,0.00011865,2]
[360890624,1747114105160,-500.0,0.00011865,2]
[360890625,1747114105195,-500.0,0.00011865,2]
[360890626,1747114105234,-500.0,0.00011865,2]
[360890627,1747114105270,-500.0,0.00011865,2]
[360890628,1747114105306,-500.0,0.00011865,2]
[360890629,1747114105342,-500.0,0.00011865,2]
[360890630,1747114105368,-250.0,0.00011867,2]
[360890631,1747114105706,-1200.0,0.00011867,2]
[360890632,1747114105731,-300.0,0.00011867,2]
[360890633,1747114105755,-200.0,0.00011868,2]
[360890634,1747114105778,-200.0,0.00011869,2]
[360890635,1747114105801,-671.933,0.00011888,2]
[360890636,1747114105824,-151.0,0.00011893,2]
[360890637,1747114105847,-156.66233414,0.00011893,2]
[360890638,1747114105870,-668.65185757,0.00011893,2]
[360890639,1747114105897,-151.0,0.00011893,2]
[360890640,1747114105920,-649.185,0.00011895,2]
[360890641,1747114105944,-2619.8046,0.00011895,2]
[360890642,1747114105978,-150.0,0.00011899,2]
[360890643,1747114106005,-6991.1848,0.000119,2]
[360890644,1747114106030,-3197.2025,0.000119,2]
[360890645,1747114106055,-7536.6682,0.000119,2]
[360890646,1747114106080,-170.07895785,0.000119,2]
[360890647,1747114106105,-12439.3524,0.000119,2]
[360890648,1747114106134,-524.4011,0.000119,2]
[360890649,1747114106160,-171.79953325,0.000119,2]
[360890650,1747114106185,-33471.1164,0.000119,2]
[360890651,1747114106210,-6370.26622977,0.000119,2]
[360890652,1747114106236,-165.43180098,0.000119,2]
[360890653,1747114106260,-500.0,0.00011904,2]
[360890654,1747114106292,-500.0,0.00011904,2]
[360890655,1747114106316,-200.0,0.00011904,2]
[360890656,1747114106341,-330.3150053,0.00011939,2]
[360890657,1747114106367,-307.95,0.00011964,2]
[360890658,1747114106395,-500.0,0.00011973,2]
[360890659,1747114106421,-501.01024002,0.00011973,2]
[360890660,1747114106447,-500.0,0.00011973,2]
[360890661,1747114106471,-500.0,0.00011973,2]
[360890662,1747114106496,-500.0,0.00011973,2]
[360890663,1747114106521,-501.66088195,0.00011973,2]
[360890664,1747114106547,-8409.5901688,0.00011995,2]
[360890665,1747114106574,-300.0,0.00011999,2]
[360890666,1747114106604,-52722.27678609,0.00012,2]
[360890667,1747114106631,-190.48691295,0.00012,2]
[360890668,1747114106658,-144439.36262762,0.00012,2]
[360890669,1747114109148,-100000.0,0.00012,2]
[360890670,1747114110836,-100000.0,0.00012,2]
[360890671,1747114113986,800.0,0.000116,4]
[360890672,1747114116088,1600.0,0.000117,4]
[360890673,1747114118207,2500.0,0.000118,4]
[360890674,1747114122465,4200.0,0.000138,5]
[360890675,1747114122784,250.0,0.00011795,2]
[360890676,1747114124597,800.0,0.000139,5]
[360890677,1747114145284,-3300.0,0.000119,4]
[360890678,1747114145311,-300.0,0.00011989,2]
[360890679,1747114145336,-10807.59414894,0.0001199,2]
[360890680,1747114145364,-26361.13839305,0.00012,2]
[360890681,1747114145389,-17031.26745801,0.00012,2]
[360890684,1747114187587,500.0,0.00011758,2]
[360890685,1747114197336,-500.0,0.00011865,2]
[360890686,1747114197363,-229.59360492,0.00011865,2]
[360890687,1747114197388,-252.0396822,0.00011865,2]
[360890688,1747114197415,-500.0,0.00011865,2]
[360890689,1747114197441,-7106.54388459,0.000119,2]
[360890690,1747114197678,-1172.0,0.000119,2]
[360890691,1747114197705,-7578.59282356,0.000119,2]
[360890692,1747114197730,-313.799255,0.00011939,2]
[360890693,1747114197754,-500.0,0.00011973,2]
[360890694,1747114197780,-56847.43074973,0.00012,2]
[360890695,1747114198259,250.33,0.00011738,2]
[360890696,1747114201408,8275.62,0.00011784,2]
[360890700,1747114208606,388.366573,7.945e-05,2]
[360890701,1747114222233,394.231507,0.00011805,2]
[360890702,1747114224420,152.14,0.0001164,2]
[360890703,1747114224603,152.14,0.00011646,2]
[360890704,1747114224806,152.14,0.00011653,2]
[360890705,1747114224989,152.14,0.00011659,2]
[360890706,1747114225195,152.14,0.00011666,2]
[360890707,1747114225400,152.14,0.00011672,2]
[360890708,1747114225612,152.14,0.00011679,2]
[360890709,1747114225720,-300.0,0.00011864,2]
[360890710,1747114225757,-1023.77780309,0.00011865,2]
[360890711,1747114225792,-1023.77780309,0.00011865,2]
[360890712,1747114225826,-1023.77780309,0.00011865,2]
[360890713,1747114225861,-1023.77780309,0.00011865,2]
[360890714,1747114225895,-1023.77780309,0.00011865,2]
[360890715,1747114225932,-1023.77780309,0.00011865,2]
[360890716,1747114225966,-1023.77780309,0.00011865,2]
[360890717,1747114226001,-1023.77780309,0.00011865,2]
[360890718,1747114226036,-1023.77780309,0.00011865,2]
[360890719,1747114226072,-1023.77780309,0.00011865,2]
[360890720,1747114226109,-1023.77780309,0.00011865,2]
[360890721,1747114226150,-1023.77780309,0.00011865,2]
[360890722,1747114226190,-1023.77780309,0.00011865,2]
[360890723,1747114226225,-1023.77780309,0.00011865,2]
[360890724,1747114226259,-1023.77780309,0.00011865,2]
[360890725,1747114226294,-1023.77780309,0.00011865,2]
[360890726,1747114226327,-1023.77780309,0.00011865,2]
[360890727,1747114226362,-1023.77780309,0.00011865,2]
[360890728,1747114226398,-1023.77780309,0.00011865,2]
[360890729,1747114226434,-1023.77780309,0.00011865,2]
[360890730,1747114226471,-1023.77780309,0.00011865,2]
[360890731,1747114226506,-1023.77780309,0.00011865,2]
[360890732,1747114226541,-1023.77780309,0.00011865,2]
[360890733,1747114226573,-1023.77780309,0.00011865,2]
[360890734,1747114226609,-1023.77780309,0.00011865,2]
[360890735,1747114226646,-1023.77780309,0.00011865,2]
[360890736,1747114226680,-1023.77780309,0.00011865,2]
[360890737,1747114226714,-1023.77780309,0.00011865,2]
[360890738,1747114226749,-1023.77780309,0.00011865,2]
[360890739,1747114226782,-1023.77780309,0.00011865,2]
[360890740,1747114226817,-1023.77780309,0.00011865,2]
[360890741,1747114226852,-1023.77780309,0.00011865,2]
[360890742,1747114226886,-1023.77780309,0.00011865,2]
[360890743,1747114226924,-915.33249803,0.00011865,2]
[360890744,1747114226967,152.14,0.00011685,2]
[360890745,1747114227041,152.14,0.00011692,2]
[360890746,1747114227127,152.14,0.00011698,2]
[360890755,1747114231889,-108.44530506,0.00011865,2]
[360890756,1747114231898,-649.10521431,0.00011865,2]
[360890757,1747114231910,-374.67258878,0.00011865,2]
[360890758,1747114231923,-500.0,0.00011973,2]
[360890759,1747114231934,-504.44490417,0.00011973,2]
[360890760,1747114231943,-500.0,0.00011973,2]
[360890761,1747114231952,-1200.0,0.00011999,2]
[360890762,1747114231963,-300.0,0.00011999,2]
[360890763,1747114231972,-150.0,0.00011999,2]
[360890764,1747114231982,-186.53918942,0.00011999,2]
[360890765,1747114231992,-201.73429737,0.00011999,2]
[360890766,1747114232003,-1288.59106769,0.00011999,2]
[360890767,1747114232015,-1288.59106769,0.00011999,2]
[360890768,1747114232025,-1288.59106769,0.00011999,2]
[360890769,1747114232036,-1288.59106769,0.00011999,2]
[360890770,1747114232047,-1288.59106769,0.00011999,2]
[360890771,1747114232058,-1288.59106769,0.00011999,2]
[360890772,1747114232068,-1288.59106769,0.00011999,2]
[360890773,1747114232077,-1288.59106769,0.00011999,2]
[360890774,1747114232088,-1288.59106769,0.00011999,2]
[360890775,1747114232098,-1288.59106769,0.00011999,2]
[360890776,1747114232108,-1288.59106769,0.00011999,2]
[360890777,1747114232118,-1288.59106769,0.00011999,2]
[360890778,1747114232128,-1288.59106769,0.00011999,2]
[360890779,1747114232137,-1288.59106769,0.00011999,2]
[360890780,1747114232147,-1288.59106769,0.00011999,2]
[360890781,1747114232156,-1288.59106769,0.00011999,2]
[360890782,1747114232168,-1288.59106769,0.00011999,2]
[360890783,1747114232178,-1288.59106769,0.00011999,2]
[360890784,1747114232188,-1288.59106769,0.00011999,2]
[360890785,1747114232197,-1288.59106769,0.00011999,2]
[360890786,1747114232207,-1288.59106769,0.00011999,2]
[360890787,1747114232217,-1288.59106769,0.00011999,2]
[360890788,1747114232227,-1288.59106769,0.00011999,2]
[360890789,1747114232238,-1288.59106769,0.00011999,2]
[360890790,1747114232248,-1288.59106769,0.00011999,2]
[360890791,1747114232258,-1288.59106769,0.00011999,2]
[360890792,1747114232270,-1288.59106769,0.00011999,2]
[360890793,1747114232281,-1288.59106769,0.00011999,2]
[360890794,1747114232295,-1288.59106769,0.00011999,2]
[360890795,1747114232305,-1288.59106769,0.00011999,2]
[360890796,1747114232315,-1288.59106769,0.00011999,2]
[360890798,1747114232324,-1288.59106769,0.00011999,2]
[360890799,1747114232333,-1288.59106769,0.00011999,2]
[360890800,1747114232343,-1288.59106769,0.00011999,2]
[360890801,1747114232353,-1288.59106769,0.00011999,2]
[360890803,1747114232363,-1288.59106769,0.00011999,2]
[360890805,1747114232372,-1288.59106769,0.00011999,2]
[360890807,1747114232381,-1288.59106769,0.00011999,2]
[360890809,1747114232390,-1288.59106769,0.00011999,2]
[360890811,1747114232400,-1288.59106769,0.00011999,2]
[360890813,1747114232410,-1288.59106769,0.00011999,2]
[360890815,1747114232419,-1288.59106769,0.00011999,2]
[360890817,1747114232428,-1288.59106769,0.00011999,2]
[360890819,1747114232438,-1288.59106769,0.00011999,2]
[360890821,1747114232447,-1288.59106769,0.00011999,2]
[360890823,1747114232456,-1288.59106769,0.00011999,2]
[360890825,1747114232465,-1496.16142153,0.00011999,2]
[360890827,1747114232475,-1496.16142153,0.00011999,2]
[360890829,1747114232484,-1496.16142153,0.00011999,2]
[360890831,1747114232496,-1496.16142153,0.00011999,2]
[360890833,1747114232505,-1496.16142153,0.00011999,2]
[360890835,1747114232514,-1496.16142153,0.00011999,2]
[360890837,1747114232523,-1496.16142153,0.00011999,2]
[360890839,1747114232533,-1496.16142153,0.00011999,2]
[360890841,1747114232542,-200.0,0.00011999,2]
[360890843,1747114232552,-13180.56919652,0.00012,2]
[360890845,1747114232562,-42529.89392922,0.00012,2]
[360890848,1747114232586,-1090.42243828,0.00012,2]
[360890850,1747114232603,-478.31588386,0.00012,2]
[360890854,1747114232632,-2155.68293364,0.00012,2]
[360890863,1747114237920,-381.48,0.00012,2]
[360890864,1747114238032,-458609.86712096,0.00012,2]
[360890872,1747114240086,-5431.6560771,0.00012,2]
[360890873,1747114240142,-906.61813941,0.00012,2]
[360890874,1747114240203,-366.97,0.00012,2]
[360890875,1747114241307,-10760.5784668,0.00012,2]
[360890882,1747114244457,-383.30164025,0.00012,2]
[360890883,1747114244469,-649.83334176,0.00012,2]
[360890884,1747114244481,-128027.0,0.00012,2]
[360890911,1747114245842,-789.27,0.00012,2]
[360890912,1747114245853,-722.34,0.00012,2]
[360890913,1747114246229,-413.69196566,0.00012,2]
[360890919,1747114323584,631.91,9.648e-05,2]
[360890920,1747114335598,307.91,0.00011361,2]
[360890921,1747114400920,-150.0,0.00011863,2]
[360890922,1747114400945,-184.51672862,0.00011863,2]
[360890923,1747114400972,-203.08220987,0.00011863,2]
[360890924,1747114401008,-574.62265688,0.00011863,2]
[360890925,1747114401040,-574.62265688,0.00011863,2]
[360890926,1747114401071,-574.62265688,0.00011863,2]
[360890927,1747114401102,-574.62265688,0.00011863,2]
[360890928,1747114401135,-574.62265688,0.00011863,2]
[360890929,1747114401166,-574.62265688,0.00011863,2]
[360890930,1747114401198,-574.62265688,0.00011863,2]
[360890931,1747114401229,-574.62265688,0.00011863,2]
[360890932,1747114401259,-574.62265688,0.00011863,2]
[360890933,1747114401292,-574.62265688,0.00011863,2]
[360890934,1747114401322,-574.62265688,0.00011863,2]
[360890935,1747114401353,-574.62265688,0.00011863,2]
[360890936,1747114401385,-574.62265688,0.00011863,2]
[360890937,1747114401423,-574.62265688,0.00011863,2]
[360890938,1747114401456,-574.62265688,0.00011863,2]
[360890939,1747114401488,-574.62265688,0.00011863,2]
[360890940,1747114401520,-574.62265688,0.00011863,2]
[360890941,1747114401553,-574.62265688,0.00011863,2]
[360890942,1747114401585,-574.62265688,0.00011863,2]
[360890943,1747114401616,-574.62265688,0.00011863,2]
[360890944,1747114401648,-574.62265688,0.00011863,2]
[360890945,1747114401681,-574.62265688,0.00011863,2]
[360890946,1747114401714,-574.62265688,0.00011863,2]
[360890947,1747114401745,-574.62265688,0.00011863,2]
[360890948,1747114401774,-574.62265688,0.00011863,2]
[360890949,1747114401804,-574.62265688,0.00011863,2]
[360890950,1747114401834,-574.62265688,0.00011863,2]
[360890951,1747114401864,-574.62265688,0.00011863,2]
[360890952,1747114401893,-574.62265688,0.00011863,2]
[360890953,1747114401924,-574.62265688,0.00011863,2]
[360890954,1747114401954,-574.62265688,0.00011863,2]
[360890955,1747114401982,-574.62265688,0.00011863,2]
[360890956,1747114402013,-574.62265688,0.00011863,2]
[360890957,1747114402047,-574.62265688,0.00011863,2]
[360890958,1747114402077,-574.62265688,0.00011863,2]
[360890959,1747114402107,-574.62265688,0.00011863,2]
[360890960,1747114402137,-574.62265688,0.00011863,2]
[360890961,1747114402167,-574.62265688,0.00011863,2]
[360890962,1747114402196,-583.42913438,0.00011864,2]
[360890963,1747114402228,-583.42913438,0.00011864,2]
[360890964,1747114402258,-583.42913438,0.00011864,2]
[360890965,1747114402288,-583.42913438,0.00011864,2]
[360890966,1747114402320,-583.42913438,0.00011864,2]
[360890967,1747114402351,-583.42913438,0.00011864,2]
[360890968,1747114402384,-583.42913438,0.00011864,2]
[360890969,1747114402414,-583.42913438,0.00011864,2]
[360890970,1747114402445,-583.42913438,0.00011864,2]
[360890971,1747114402474,-583.42913438,0.00011864,2]
[360890972,1747114402503,-583.42913438,0.00011864,2]
[360890973,1747114402533,-583.42913438,0.00011864,2]
[360890974,1747114402562,-583.42913438,0.00011864,2]
[360890975,1747114402593,-583.42913438,0.00011864,2]
[360890976,1747114402625,-583.42913438,0.00011864,2]
[360890977,1747114402669,-583.42913438,0.00011864,2]
[360890978,1747114402706,-583.42913438,0.00011864,2]
[360890979,1747114402739,-583.42913438,0.00011864,2]
[360890980,1747114402772,-583.42913438,0.00011864,2]
[360890981,1747114402804,-583.42913438,0.00011864,2]
[360890982,1747114402838,-583.42913438,0.00011864,2]
[360890983,1747114402872,-583.42913438,0.00011864,2]
[360890984,1747114402905,-583.42913438,0.00011864,2]
[360890985,1747114402936,-583.42913438,0.00011864,2]
[360890986,1747114402971,-583.42913438,0.00011864,2]
[360890987,1747114403006,-583.42913438,0.00011864,2]
[360890988,1747114403041,-583.42913438,0.00011864,2]
[360890989,1747114403074,-583.42913438,0.00011864,2]
[360890990,1747114403105,-583.42913438,0.00011864,2]
[360890991,1747114403137,-583.42913438,0.00011864,2]
[360890992,1747114403390,-583.42913438,0.00011864,2]
[360890993,1747114403424,-583.42913438,0.00011864,2]
[360890994,1747114403459,-583.42913438,0.00011864,2]
[360890995,1747114403491,-583.42913438,0.00011864,2]
[360890996,1747114403523,-583.42913438,0.00011864,2]
[360890997,1747114403553,-583.42913438,0.00011864,2]
[360890998,1747114403583,-359.29126239,0.00011864,2]
[360890999,1747114436133,996.99,0.0001127,2]
[360891001,1747114521831,166.66,0.00011498,2]
[360891002,1747114527361,858.89,0.00011164,2]
[360891003,1747114543530,187.58670763,0.00011762,2]
[360891004,1747114576255,304.27,0.00011156,2]
[360891005,1747114580459,184.56,0.00011156,2]
[360891006,1747114612285,678.23,0.00011176,2]
[360891007,1747114641221,250.0,0.00011737,2]
[360891008,1747114651936,162.02,0.00011123,2]
[360891009,1747114662355,6395.88949614,0.000118,2]
[360891010,1747114699250,1226.93,0.00011123,2]
[360891011,1747114767073,500.0,0.000145,5]
[360891012,1747114776795,500.0,0.000145,5]
[360891013,1747114787095,169.31,8.858e-05,2]
[360891014,1747114787301,169.31,0.00011073,2]
[360891015,1747114787973,1263.5,0.00011073,2]
[360891016,1747114789626,200.0,0.00011073,2]
[360891017,1747114803479,500.0,0.000145,5]
[360891018,1747114813192,500.0,0.000145,5]
[360891019,1747114816310,198.15,0.000118,2]
[360891020,1747114818694,171.28,0.00011091,2]
[360891021,1747114847992,210.71,0.00013846,7]
[360891022,1747114859470,198.57,0.000118,2]
[360891023,1747114923186,-150.0,0.00011856,2]
[360891027,1747114955182,-197.86,0.00011856,2]
[360891028,1747114965769,-265.67098748,0.00011856,2]
[360891029,1747114968283,150.0,0.00011116,2]
[360891030,1747114980687,-173.45,0.00011856,2]
[360891031,1747114980719,-36.02922101,0.00011856,2]
[360891032,1747114986420,271.33,0.00011106,2]
[360891033,1747114989402,59007.67,0.00011106,2]
[360891034,1747115005530,220.36795247,0.00013735,5]
[360891035,1747115008207,1000.0,0.0001112,2]
[360891036,1747115026137,202.3296193,0.00028,120]
[360891037,1747115026846,5213.28,0.0001112,2]
[360891038,1747115048759,-23500.0,0.00016,7]
[360891039,1747115050131,534.18,0.00011135,2]
[360891044,1747115177554,5756.30054649,0.000118,2]
[360891045,1747115195188,162.6,0.00011109,2]
[360891072,1747115279704,500.0,0.00011131,2]
[360891076,1747115319538,150.0,0.000145,5]
[360891079,1747115342957,-251.31470342,0.00011851,2]
[360891080,1747115346404,37882.22305261,0.00011846,2]
[360891087,1747115401913,-152.0,0.00011851,2]
[360891091,1747115432060,-1048.0,0.00011851,2]
[360891092,1747115432070,-300.0,0.00011851,2]
[360891093,1747115432080,-500.0,0.00011852,2]
[360891094,1747115432090,-500.0,0.00011852,2]
[360891095,1747115432101,-500.0,0.00011852,2]
[360891096,1747115432111,-500.0,0.00011852,2]
[360891097,1747115432121,-500.0,0.00011852,2]
[360891098,1747115432131,-500.0,0.00011852,2]
[360891099,1747115432140,-500.0,0.00011852,2]
[360891100,1747115432150,-500.0,0.00011852,2]
[360891101,1747115432160,-500.0,0.00011852,2]
[360891102,1747115432170,-500.0,0.00011852,2]
[360891103,1747115432180,-500.0,0.00011852,2]
[360891104,1747115432190,-500.0,0.00011852,2]
[360891105,1747115432199,-500.0,0.00011852,2]
[360891106,1747115432210,-500.0,0.00011852,2]
[360891107,1747115432220,-500.0,0.00011852,2]
[360891108,1747115432229,-500.0,0.00011852,2]
[360891109,1747115432240,-500.0,0.00011852,2]
[360891110,1747115432250,-500.0,0.00011852,2]
[360891111,1747115432259,-500.0,0.00011852,2]
[360891112,1747115432269,-500.0,0.00011852,2]
[360891113,1747115432279,-500.0,0.00011852,2]
[360891114,1747115432288,-362.41125609,0.00011852,2]
[360891115,1747115432299,-500.0,0.00011852,2]
[360891116,1747115432309,-500.0,0.00011852,2]
[360891117,1747115432320,-500.0,0.00011852,2]
[360891118,1747115432330,-500.0,0.00011852,2]
[360891119,1747115432340,-200.0,0.00011853,2]
[360891120,1747115432350,-150.0,0.00011854,2]
[360891121,1747115432360,-200.0,0.00011855,2]
[360891122,1747115432370,-7809.47087153,0.00011855,2]
[360891123,1747115432381,-43942.3163501,0.00011856,2]
[360891124,1747115432414,-10672.72719553,0.00011856,2]
[360891125,1747115432426,-11582.83851412,0.00011856,2]
[360891190,1747115438055,-489.56,0.00011856,2]
[360891191,1747115438219,-409.79436,0.00011856,2]
[360891194,1747115440141,-3657.08434512,0.00011856,2]
[360891204,1747115443257,-6064.52065593,0.00011856,2]
[360891205,1747115443368,-672.0,0.00011856,2]
[360891271,1747115446051,-6536.940145,0.00011856,2]
[360891276,1747115446960,-10728.79825984,0.00011856,2]
[360891277,1747115446980,-336.43017436,0.00011856,2]
[360891278,1747115446990,-169.64,0.0001189,2]
[360891279,1747115446999,-169.64,0.0001189,2]
[360891280,1747115447008,-207.4,0.00011893,2]
[360891281,1747115447019,-111.4879442,0.000119,2]
[360891282,1747115483457,318.04569512,0.0001185,2]
[360891283,1747115485403,500.0,0.0001185,2]
[360891284,1747115485487,500.0,0.0001185,2]
[360891285,1747115504368,740.125094,0.00011839,2]
[360891288,1747115551064,250.0,0.00011188,2]
[360891289,1747115645628,600.31,9.325e-05,2]
[360891290,1747115646015,600.31,0.00011589,2]
[360891291,1747115687200,161.6,0.00011266,2]
[360891292,1747115692935,5323.33318193,0.00011839,2]
[360891293,1747115694172,41201.0925,0.000118,2]
[360891294,1747115807466,29526.43913204,0.000145,5]
[360891295,1747115817797,360.55,0.00011201,2]
[360891296,1747115888603,169.31,8.957e-05,2]
[360891297,1747115987942,1017.92,0.00011182,2]
[360891298,1747115995821,271.33,0.00011182,2]
[360891299,1747116040718,300.0,0.00014,5]
[360891300,1747116040995,479.29884,0.00014,5]
[360891301,1747116201618,200.0,0.00011093,2]
[360891302,1747116259795,171.0,0.00028,120]
[360891303,1747116281846,162.0,0.00028,120]
[360891304,1747116323242,198.39,0.00011222,2]
[360891305,1747116340836,1000.0,0.00011222,2]
[360891306,1747116360897,1000.0,0.00028,120]
[360891307,1747116371705,1000.0,0.00025,60]
[360891308,1747116385625,1000.0,0.00028,120]
[360891309,1747116413612,618.7862417,0.00011,3]
[360891321,1747116484776,155.32683914,0.00028,120]
[360891322,1747116510526,352.22129028,0.00028,120]
[360891324,1747116549865,250.0,0.00011214,2]
[360891325,1747116575465,850.0,0.00028,120]
[360891330,1747116599306,150.0,0.0001185,2]
[360891343,1747116632497,-207.4,0.00011893,2]
[360891344,1747116632511,-200.0,0.00011893,2]
[360891345,1747116632521,-250.0,0.00011893,2]
[360891346,1747116632532,-200.0,0.00011895,2]
[360891347,1747116632541,-150.0,0.00011899,2]
[360891348,1747116632551,-1200.0,0.00011899,2]
[360891349,1747116632560,-300.0,0.00011899,2]
[360891350,1747116632570,-300.0,0.00011899,2]